fUST/lending_fUST_20250208
["ID","MTS","AMOUNT","RATE_DAILY","PERIOD"]
[352253700,1739019044733,-500.0,0.00011232,2]
[352253703,1739019044743,-1354.65,0.00011232,2]
[352253705,1739019044752,-583.34,0.00011232,2]
[352253707,1739019044761,-462.27252829,0.00011232,2]
[352253709,1739019044770,-2808.69,0.00011232,2]
[352253711,1739019044779,-1009.15,0.00011232,2]
[352253713,1739019044790,-500.0,0.00011232,2]
[352253714,1739019044800,-500.0,0.00011232,2]
[352253716,1739019044811,-3557.69,0.00011232,2]
[352253719,1739019044820,-500.0,0.00011232,2]
[352253721,1739019044829,-500.0,0.00011232,2]
[352253723,1739019044838,-500.0,0.00011232,2]
[352253725,1739019044848,-500.0,0.00011232,2]
[352253726,1739019044858,-902.80646117,0.00011277,2]
[352253728,1739019044867,-500.0,0.00011283,2]
[352253730,1739019044876,-585.45216601,0.00011283,2]
[352253733,1739019044886,-500.0,0.00011291,2]
[352253734,1739019044895,-151.91283573,0.00011291,2]
[352253736,1739019044905,-500.0,0.00011291,2]
[352253738,1739019044915,-354.7727591,0.000113,2]
[352253740,1739019044924,-151.0,0.000113,2]
[352253742,1739019044933,-151.0,0.000113,2]
[352253744,1739019044942,-13265.39216455,0.00011367,2]
[352253746,1739019044951,-270.37214,0.00011369,2]
[352253748,1739019044960,-270.37214,0.00011369,2]
[352253750,1739019044969,-500.0,0.00011369,2]
[352253752,1739019044978,-571.34,0.00011369,2]
[352253754,1739019044988,-500.0,0.00011369,2]
[352253756,1739019044997,-500.0,0.00011369,2]
[352253758,1739019045006,-500.0,0.00011369,2]
[352253760,1739019045015,-500.0,0.00011369,2]
[352253762,1739019045025,-500.0,0.00011369,2]
[352253764,1739019045039,-500.0,0.00011369,2]
[352253766,1739019045049,-500.0,0.00011369,2]
[352253768,1739019045058,-500.0,0.00011369,2]
[352253770,1739019045068,-500.0,0.00011369,2]
[352253772,1739019045077,-500.0,0.00011369,2]
[352253774,1739019045087,-500.0,0.00011369,2]
[352253776,1739019045098,-500.0,0.00011369,2]
[352253778,1739019045107,-500.0,0.00011369,2]
[352253780,1739019045117,-500.0,0.00011369,2]
[352253782,1739019045129,-500.0,0.00011369,2]
[352253785,1739019045138,-500.0,0.00011369,2]
[352253787,1739019045148,-992.82,0.00011369,2]
[352253788,1739019045157,-500.0,0.00011369,2]
[352253791,1739019045166,-500.0,0.00011369,2]
[352253792,1739019045177,-500.0,0.00011369,2]
[352253794,1739019045186,-621.83,0.00011369,2]
[352253796,1739019045196,-500.0,0.00011369,2]
[352253798,1739019045205,-927.84,0.00011369,2]
[352253800,1739019045215,-500.0,0.00011369,2]
[352253802,1739019045224,-500.0,0.00011369,2]
[352253804,1739019045233,-500.0,0.00011369,2]
[352253806,1739019045243,-500.0,0.00011369,2]
[352253808,1739019045252,-500.0,0.00011369,2]
[352253810,1739019045260,-1215.91,0.00011369,2]
[352253812,1739019045270,-1300.94,0.00011369,2]
[352253814,1739019045279,-739.26,0.00011369,2]
[352253816,1739019045294,-500.0,0.00011369,2]
[352253818,1739019045304,-500.0,0.00011369,2]
[352253820,1739019045313,-658.25,0.00011369,2]
[352253822,1739019045322,-500.0,0.00011369,2]
[352253824,1739019045335,-500.0,0.00011369,2]
[352253826,1739019045344,-526.57,0.00011369,2]
[352253828,1739019045353,-604.22,0.00011369,2]
[352253830,1739019045362,-500.0,0.00011369,2]
[352253832,1739019045371,-500.0,0.00011369,2]
[352253834,1739019045380,-500.0,0.00011369,2]
[352253836,1739019045390,-500.0,0.00011369,2]
[352253838,1739019045403,-500.0,0.00011369,2]
[352253840,1739019045412,-959.22,0.00011369,2]
[352253842,1739019045421,-1357.13,0.00011369,2]
[352253860,1739019045559,-500.0,0.00011369,2]
[352253862,1739019045568,-500.0,0.00011369,2]
[352253864,1739019045578,-1203.51,0.00011369,2]
[352253866,1739019045587,-500.0,0.00011369,2]
[352253868,1739019045596,-500.0,0.00011369,2]
[352253870,1739019045605,-782.4,0.00011369,2]
[352253873,1739019045615,-500.0,0.00011369,2]
[352253875,1739019045625,-500.0,0.00011369,2]
[352253877,1739019045634,-675.46,0.00011369,2]
[352253879,1739019045643,-500.0,0.00011369,2]
[352253881,1739019045652,-500.0,0.00011369,2]
[352253883,1739019045662,-500.0,0.00011369,2]
[352253885,1739019045671,-303.10874071,0.00011369,2]
[352253887,1739019045680,-500.0,0.00011369,2]
[352253889,1739019045689,-500.0,0.00011369,2]
[352253892,1739019045699,-500.0,0.00011369,2]
[352253893,1739019045708,-500.0,0.00011369,2]
[352253895,1739019045717,-500.0,0.00011369,2]
[352253897,1739019045727,-987.21,0.00011369,2]
[352253899,1739019045736,-13643.7,0.00011369,2]
[352253901,1739019045745,-401.88639281,0.00011369,2]
[352253903,1739019045754,-500.0,0.00011369,2]
[352253906,1739019045764,-500.0,0.00011369,2]
[352253908,1739019045773,-500.0,0.00011369,2]
[352253910,1739019045786,-1017.68,0.00011369,2]
[352253911,1739019045795,-3159.46,0.00011369,2]
[352253914,1739019045804,-1177.59,0.00011369,2]
[352253916,1739019045814,-676.36,0.00011369,2]
[352253918,1739019045823,-500.0,0.00011369,2]
[352253920,1739019045832,-651.01,0.00011369,2]
[352253921,1739019045841,-1495.35,0.00011369,2]
[352253923,1739019045851,-500.0,0.00011369,2]
[352253925,1739019045860,-500.0,0.00011369,2]
[352253927,1739019045869,-610.41398518,0.00011369,2]
[352253929,1739019045878,-1072.18,0.00011369,2]
[352253931,1739019045887,-500.0,0.00011369,2]
[352253933,1739019045897,-618.56,0.00011369,2]
[352253935,1739019045906,-500.0,0.00011369,2]
[352253937,1739019045916,-4860.36,0.00011369,2]
[352253939,1739019045925,-500.0,0.00011369,2]
[352253941,1739019045934,-1048.17,0.00011369,2]
[352253943,1739019045943,-500.0,0.00011369,2]
[352253945,1739019045951,-500.0,0.00011369,2]
[352253947,1739019045960,-1286.72,0.00011369,2]
[352253949,1739019045969,-40763.64,0.00011369,2]
[352253951,1739019045979,-500.0,0.00011369,2]
[352253953,1739019045988,-3644.41,0.00011369,2]
[352253955,1739019045997,-500.0,0.00011369,2]
[352253957,1739019046007,-1452.23,0.00011369,2]
[352253959,1739019046015,-1763.67,0.00011369,2]
[352253961,1739019046025,-500.0,0.00011369,2]
[352253963,1739019046039,-1852.32,0.00011369,2]
[352253965,1739019046048,-500.0,0.00011369,2]
[352253967,1739019046057,-500.0,0.00011369,2]
[352253969,1739019046066,-334.99089184,0.00011369,2]
[352253971,1739019046076,-500.0,0.00011369,2]
[352253973,1739019046085,-500.0,0.00011369,2]
[352253975,1739019046094,-1345.9,0.00011369,2]
[352253977,1739019046103,-1083.37,0.00011369,2]
[352253979,1739019046113,-500.0,0.00011369,2]
[352253981,1739019046122,-853.95,0.00011369,2]
[352253983,1739019046131,-508.00484531,0.00011369,2]
[352253985,1739019046140,-14578.3,0.00011369,2]
[352253987,1739019046149,-500.0,0.00011369,2]
[352253989,1739019046158,-500.0,0.00011369,2]
[352253991,1739019046167,-1874.95,0.00011369,2]
[352253993,1739019046176,-590.00289293,0.00011369,2]
[352253995,1739019046186,-279.00637962,0.00011369,2]
[352253997,1739019046195,-510.62,0.00011369,2]
[352253999,1739019046205,-1297.22,0.00011369,2]
[352254001,1739019046215,-500.0,0.00011369,2]
[352254003,1739019046224,-1626.53,0.00011369,2]
[352254005,1739019046234,-500.0,0.00011369,2]
[352254007,1739019046244,-1753.79,0.00011369,2]
[352254009,1739019046253,-500.0,0.00011369,2]
[352254011,1739019046262,-500.0,0.00011369,2]
[352254013,1739019046272,-3134.78,0.00011369,2]
[352254015,1739019046285,-581.23,0.00011369,2]
[352254017,1739019046295,-500.0,0.00011369,2]
[352254019,1739019046304,-500.0,0.00011369,2]
[352254021,1739019046313,-500.0,0.00011369,2]
[352254023,1739019046322,-500.0,0.00011369,2]
[352254025,1739019046331,-1465.45,0.00011369,2]
[352254027,1739019046340,-500.0,0.00011369,2]
[352254029,1739019046350,-500.0,0.00011369,2]
[352254031,1739019046359,-500.0,0.00011369,2]
[352254033,1739019046368,-624.37,0.00011369,2]
[352254035,1739019046377,-3665.29,0.00011369,2]
[352254037,1739019046387,-1210.68,0.00011369,2]
[352254039,1739019046399,-8602.33,0.00011369,2]
[352254041,1739019046409,-3698.08,0.00011369,2]
[352254043,1739019046418,-500.0,0.00011369,2]
[352254045,1739019046428,-785.01,0.00011369,2]
[352254047,1739019046437,-500.0,0.00011369,2]
[352254049,1739019046447,-596.91,0.00011369,2]
[352254051,1739019046456,-752.18,0.00011369,2]
[352254053,1739019046466,-1408.83,0.00011369,2]
[352254055,1739019046477,-1536.58,0.00011369,2]
[352254057,1739019046486,-500.0,0.00011369,2]
[352254059,1739019046496,-822.14,0.00011369,2]
[352254061,1739019046506,-1588.02,0.00011369,2]
[352254063,1739019046515,-4081.82,0.00011369,2]
[352254065,1739019046525,-500.0,0.00011369,2]
[352254067,1739019046537,-1354.65,0.00011369,2]
[352254069,1739019046547,-583.34,0.00011369,2]
[352254071,1739019046556,-2808.69,0.00011369,2]
[352254073,1739019046565,-1009.15,0.00011369,2]
[352254075,1739019046575,-500.0,0.00011369,2]
[352254077,1739019046585,-500.0,0.00011369,2]
[352254079,1739019046594,-3557.69,0.00011369,2]
[352254081,1739019046604,-500.0,0.00011369,2]
[352254083,1739019046614,-500.0,0.00011369,2]
[352254085,1739019046624,-500.0,0.00011369,2]
[352254087,1739019046633,-500.0,0.00011369,2]
[352254089,1739019046642,-500.0,0.00011384,2]
[352254091,1739019046652,-500.0,0.00011384,2]
[352254093,1739019046661,-500.0,0.00011384,2]
[352254095,1739019046670,-500.0,0.00011384,2]
[352254097,1739019046679,-500.0,0.00011384,2]
[352254099,1739019046689,-500.0,0.00011384,2]
[352254101,1739019046698,-2000.000001,0.000114,2]
[352254103,1739019046707,-151.0,0.000114,2]
[352254105,1739019046717,-151.0,0.000114,2]
[352254107,1739019046726,-151.0,0.00011423,2]
[352254109,1739019046735,-3393.132,0.00011478,2]
[352254111,1739019046744,-151.0,0.000115,2]
[352254113,1739019046753,-652.404219,0.00011506,2]
[352254115,1739019046763,-652.404219,0.00011506,2]
[352254117,1739019046772,-195.907649,0.00011506,2]
[352254118,1739019046781,-270.37214,0.00011506,2]
[352254119,1739019046791,-195.907649,0.00011506,2]
[352254120,1739019046800,-270.37214,0.00011506,2]
[352254121,1739019046809,-500.0,0.00011506,2]
[352254122,1739019046820,-571.34,0.00011506,2]
[352254123,1739019046830,-500.0,0.00011506,2]
[352254124,1739019046840,-500.0,0.00011506,2]
[352254126,1739019046849,-92.59315115,0.00011506,2]
[352254159,1739019047145,-156.18684885,0.00011506,2]
[352254161,1739019047155,-500.0,0.00011506,2]
[352254163,1739019047165,-500.0,0.00011506,2]
[352254165,1739019047174,-500.0,0.00011506,2]
[352254167,1739019047184,-500.0,0.00011506,2]
[352254169,1739019047194,-500.0,0.00011506,2]
[352254171,1739019047204,-500.0,0.00011506,2]
[352254173,1739019047214,-500.0,0.00011506,2]
[352254175,1739019047224,-992.82,0.00011506,2]
[352254177,1739019047234,-500.0,0.00011506,2]
[352254179,1739019047244,-500.0,0.00011506,2]
[352254181,1739019047253,-621.83,0.00011506,2]
[352254183,1739019047262,-500.0,0.00011506,2]
[352254185,1739019047272,-927.84,0.00011506,2]
[352254187,1739019047282,-500.0,0.00011506,2]
[352254189,1739019047292,-500.0,0.00011506,2]
[352254191,1739019047302,-151.0,0.00011506,2]
[352254193,1739019047311,-500.0,0.00011506,2]
[352254195,1739019047320,-500.0,0.00011506,2]
[352254198,1739019047330,-500.0,0.00011506,2]
[352254200,1739019047339,-1215.91,0.00011506,2]
[352254202,1739019047349,-293.515406,0.00011506,2]
[352254204,1739019047358,-293.515406,0.00011506,2]
[352254206,1739019047367,-1300.94,0.00011506,2]
[352254208,1739019047377,-739.26,0.00011506,2]
[352254210,1739019047390,-163.705868,0.00011506,2]
[352254212,1739019047403,-500.0,0.00011506,2]
[352254214,1739019047412,-163.705868,0.00011506,2]
[352254216,1739019047423,-500.0,0.00011506,2]
[352254218,1739019047433,-658.25,0.00011506,2]
[352254220,1739019047443,-500.0,0.00011506,2]
[352254222,1739019047452,-500.0,0.00011506,2]
[352254224,1739019047462,-526.57,0.00011506,2]
[352254226,1739019047472,-151.0,0.00011506,2]
[352254228,1739019047481,-604.22,0.00011506,2]
[352254231,1739019047491,-500.0,0.00011506,2]
[352254232,1739019047501,-500.0,0.00011506,2]
[352254234,1739019047510,-151.0,0.00011506,2]
[352254237,1739019047520,-500.0,0.00011506,2]
[352254239,1739019047529,-500.0,0.00011506,2]
[352254241,1739019047539,-500.0,0.00011506,2]
[352254242,1739019047549,-959.22,0.00011506,2]
[352254244,1739019047558,-1357.13,0.00011506,2]
[352254247,1739019047567,-331.55,0.00011506,2]
[352254249,1739019047576,-1203.51,0.00011506,2]
[352254251,1739019047585,-335.618371,0.00011506,2]
[352254253,1739019047594,-335.618371,0.00011506,2]
[352254255,1739019047603,-151.0,0.00011506,2]
[352254257,1739019047612,-500.0,0.00011506,2]
[352254259,1739019047621,-738.404014,0.00011506,2]
[352254261,1739019047631,-500.0,0.00011506,2]
[352254263,1739019047640,-738.404014,0.00011506,2]
[352254265,1739019047650,-151.0,0.00011506,2]
[352254267,1739019047660,-782.4,0.00011506,2]
[352254269,1739019047670,-500.0,0.00011506,2]
[352254271,1739019047679,-500.0,0.00011506,2]
[352254273,1739019047689,-152.454893,0.00011506,2]
[352254275,1739019047698,-675.46,0.00011506,2]
[352254277,1739019047708,-500.0,0.00011506,2]
[352254279,1739019047718,-500.0,0.00011506,2]
[352254281,1739019047728,-308.39971529,0.00011506,2]
[352254283,1739019047742,-99.13209643,0.00011506,2]
[352254285,1739019047752,-151.0,0.00011506,2]
[352254287,1739019047761,-151.0,0.00011506,2]
[352254289,1739019047770,-151.0,0.00011506,2]
[352254291,1739019047780,-500.0,0.00011506,2]
[352254293,1739019047790,-151.0,0.00011506,2]
[352254295,1739019047800,-151.0,0.00011506,2]
[352254297,1739019047810,-500.0,0.00011506,2]
[352254299,1739019047821,-500.0,0.00011506,2]
[352254301,1739019047831,-500.0,0.00011506,2]
[352254303,1739019047841,-500.0,0.00011506,2]
[352254306,1739019047852,-987.21,0.00011506,2]
[352254308,1739019047862,-1395.83701673,0.00011506,2]
[352254327,1739019048057,-500.0,0.00010958,2]
[352254329,1739019048069,-500.0,0.00011095,2]
[352254331,1739019048079,-12247.86298327,0.00011506,2]
[352254333,1739019048089,-500.0,0.00011506,2]
[352254334,1739019048099,-254.140647,0.00011506,2]
[352254337,1739019048110,-500.0,0.00011506,2]
[352254339,1739019048120,-500.0,0.00011506,2]
[352254341,1739019048130,-254.140647,0.00011506,2]
[352254343,1739019048141,-1017.68,0.00011506,2]
[352254344,1739019048151,-3159.46,0.00011506,2]
[352254347,1739019048161,-151.0,0.00011506,2]
[352254348,1739019048171,-1177.59,0.00011506,2]
[352254350,1739019048182,-676.36,0.00011506,2]
[352254352,1739019048191,-208.608216,0.00011506,2]
[352254354,1739019048201,-500.0,0.00011506,2]
[352254356,1739019048213,-651.01,0.00011506,2]
[352254358,1739019048222,-1495.35,0.00011506,2]
[352254360,1739019048233,-500.0,0.00011506,2]
[352254362,1739019048243,-500.0,0.00011506,2]
[352254364,1739019048253,-1072.18,0.00011506,2]
[352254366,1739019048263,-500.0,0.00011506,2]
[352254368,1739019048274,-618.56,0.00011506,2]
[352254370,1739019048284,-500.0,0.00011506,2]
[352254372,1739019048295,-4860.36,0.00011506,2]
[352254374,1739019048305,-504.04,0.00011506,2]
[352254376,1739019048316,-1048.17,0.00011506,2]
[352254378,1739019048326,-500.0,0.00011506,2]
[352254379,1739019048336,-500.0,0.00011506,2]
[352254381,1739019048346,-1286.72,0.00011506,2]
[352254383,1739019048355,-15597.85070109,0.00011506,2]
[352258077,1739019192942,3000.0,0.00014,30]
[352258078,1739019193368,3068.39415,0.0001401,30]
[352258138,1739020232274,-201.39,9.905e-05,2]
[352258140,1739020232283,-345.10546044,0.00010857,2]
[352258141,1739020232293,-181.36124753,0.00010858,2]
[352258142,1739020232303,-500.0,0.00010957,2]
[352258144,1739020232312,-524.27366671,0.00010957,2]
[352258145,1739020232321,-512.23200501,0.00010957,2]
[352258146,1739020232330,-230.74569307,0.00010958,2]
[352258148,1739020232339,-495.63186622,0.00010958,2]
[352258150,1739020232348,-553.45754452,0.00010958,2]
[352258152,1739020232357,-500.0,0.00010958,2]
[352258153,1739020232367,-500.0,0.00010958,2]
[352258155,1739020232376,-500.0,0.00010958,2]
[352258157,1739020232385,-500.0,0.00010958,2]
[352258159,1739020232394,-500.0,0.00010958,2]
[352258161,1739020232403,-500.0,0.00010958,2]
[352258162,1739020232414,-500.0,0.00010958,2]
[352258165,1739020232424,-500.0,0.00010958,2]
[352258167,1739020232433,-500.0,0.00010958,2]
[352258169,1739020232442,-500.0,0.00010958,2]
[352258171,1739020232452,-733.72,0.00010958,2]
[352258173,1739020232461,-500.0,0.00010958,2]
[352258175,1739020232470,-500.0,0.00010958,2]
[352258177,1739020232480,-500.0,0.00010958,2]
[352258179,1739020232489,-500.0,0.00010958,2]
[352258181,1739020232498,-500.0,0.00010958,2]
[352258182,1739020232508,-500.0,0.00010958,2]
[352258184,1739020232517,-500.0,0.00010958,2]
[352258186,1739020232528,-503.73460434,0.00010958,2]
[352258188,1739020232538,-226.42954886,0.00010958,2]
[352258190,1739020232548,-500.0,0.00010958,2]
[352258192,1739020232557,-500.0,0.00010958,2]
[352258194,1739020232566,-500.0,0.00010958,2]
[352258196,1739020232575,-500.0,0.00010958,2]
[352258198,1739020232584,-500.0,0.00010958,2]
[352258200,1739020232594,-500.0,0.00010958,2]
[352258202,1739020232603,-500.0,0.00010958,2]
[352258204,1739020232612,-500.0,0.00010958,2]
[352258206,1739020232622,-500.0,0.00010958,2]
[352258208,1739020232631,-500.0,0.00010958,2]
[352258211,1739020232640,-500.0,0.00010958,2]
[352258212,1739020232650,-500.0,0.00010958,2]
[352258214,1739020232659,-512.02,0.00010958,2]
[352258217,1739020232669,-500.0,0.00010958,2]
[352258219,1739020232678,-392.76298702,0.00010958,2]
[352258220,1739020232687,-231.47315469,0.00010958,2]
[352258222,1739020232696,-500.0,0.00010958,2]
[352258225,1739020232706,-501.84386738,0.00010958,2]
[352258227,1739020232716,-500.0,0.00010958,2]
[352258229,1739020232725,-500.0,0.00010958,2]
[352258231,1739020232734,-500.0,0.00010958,2]
[352258233,1739020232744,-500.0,0.00010958,2]
[352258235,1739020232753,-500.0,0.00010958,2]
[352258237,1739020232762,-500.0,0.00010958,2]
[352258238,1739020232771,-305.17023164,0.00010958,2]
[352258242,1739020232800,-197.44146739,0.00010958,2]
[352258244,1739020232813,-500.0,0.00010958,2]
[352258246,1739020232823,-439.00348576,0.00010958,2]
[352258248,1739020232832,-500.0,0.00010958,2]
[352258250,1739020232842,-500.0,0.00010958,2]
[352258252,1739020232851,-500.0,0.00010958,2]
[352258254,1739020232862,-296.33550128,0.00010958,2]
[352258256,1739020232872,-500.0,0.00010958,2]
[352258258,1739020232882,-526.82,0.00010958,2]
[352258260,1739020232891,-500.0,0.00010958,2]
[352258262,1739020232901,-500.0,0.00010958,2]
[352258264,1739020232910,-500.0,0.00010958,2]
[352258266,1739020232919,-500.0,0.00010958,2]
[352258268,1739020232928,-501.56384328,0.00010958,2]
[352258270,1739020232938,-566.35461217,0.00010958,2]
[352258272,1739020232947,-500.0,0.00010958,2]
[352258274,1739020232956,-500.0,0.00010958,2]
[352258276,1739020232966,-500.0,0.00010958,2]
[352258278,1739020232974,-500.0,0.00010958,2]
[352258280,1739020232985,-500.0,0.00010958,2]
[352258282,1739020232994,-500.0,0.00010958,2]
[352258284,1739020233003,-534.68559103,0.00010958,2]
[352258286,1739020233013,-500.0,0.00010958,2]
[352258288,1739020233023,-500.0,0.00010958,2]
[352258290,1739020233032,-500.0,0.00010958,2]
[352258292,1739020233043,-500.0,0.00010958,2]
[352258294,1739020233053,-305.34318282,0.00010958,2]
[352258296,1739020233063,-747.94,0.00010958,2]
[352258299,1739020233074,-500.0,0.00010958,2]
[352258301,1739020233084,-500.0,0.00010958,2]
[352258303,1739020233095,-501.76279991,0.00010958,2]
[352258304,1739020233105,-500.0,0.00010958,2]
[352258306,1739020233115,-500.0,0.00010958,2]
[352258308,1739020233125,-500.0,0.00010958,2]
[352258310,1739020233135,-500.0,0.00010958,2]
[352258312,1739020233145,-500.0,0.00010958,2]
[352258315,1739020233155,-500.0,0.00010958,2]
[352258317,1739020233165,-500.0,0.00010958,2]
[352258319,1739020233174,-500.0,0.00010958,2]
[352258321,1739020233184,-500.0,0.00010958,2]
[352258323,1739020233194,-500.0,0.00010958,2]
[352258325,1739020233205,-500.0,0.00010958,2]
[352258327,1739020233215,-833.91,0.00010958,2]
[352258329,1739020233226,-500.0,0.00010958,2]
[352258331,1739020233235,-500.0,0.00010958,2]
[352258333,1739020233245,-500.0,0.00010958,2]
[352258334,1739020233254,-500.0,0.00010958,2]
[352258336,1739020233264,-500.0,0.00010958,2]
[352258338,1739020233274,-500.0,0.00010958,2]
[352258340,1739020233284,-500.0,0.00010958,2]
[352258343,1739020233294,-500.0,0.00010958,2]
[352258344,1739020233304,-497.46872135,0.00010958,2]
[352258346,1739020233314,-511.05316783,0.00010958,2]
[352258348,1739020233323,-506.03758764,0.00010958,2]
[352258350,1739020233333,-500.0,0.00010958,2]
[352258353,1739020233342,-500.0,0.00010958,2]
[352258355,1739020233352,-500.0,0.00010958,2]
[352258356,1739020233361,-232.57135564,0.00010958,2]
[352258359,1739020233371,-500.0,0.00010958,2]
[352258360,1739020233380,-500.0,0.00010958,2]
[352258362,1739020233390,-500.0,0.00010958,2]
[352258364,1739020233399,-500.0,0.00010958,2]
[352258367,1739020233409,-500.0,0.00010958,2]
[352258369,1739020233418,-500.0,0.00010958,2]
[352258371,1739020233428,-1398.89,0.00010958,2]
[352258373,1739020233438,-500.0,0.00010958,2]
[352258374,1739020233447,-410.90108902,0.00010958,2]
[352258376,1739020233456,-500.0,0.00010958,2]
[352258378,1739020233466,-608.77,0.00010958,2]
[352258380,1739020233475,-500.0,0.00010958,2]
[352258382,1739020233485,-612.57339544,0.00010958,2]
[352258384,1739020233494,-1474.17,0.00010958,2]
[352258387,1739020233505,-515.34,0.00010958,2]
[352258388,1739020233515,-500.0,0.00010958,2]
[352258391,1739020233525,-500.0,0.00010958,2]
[352258392,1739020233534,-500.0,0.00010958,2]
[352258394,1739020233543,-500.0,0.00010958,2]
[352258396,1739020233553,-500.0,0.00010958,2]
[352258398,1739020233563,-501.96,0.00010958,2]
[352258400,1739020233572,-500.0,0.00010958,2]
[352258403,1739020233582,-500.0,0.00010958,2]
[352258405,1739020233591,-500.0,0.00010958,2]
[352258407,1739020233601,-500.0,0.00010958,2]
[352258409,1739020233610,-500.0,0.00010958,2]
[352258411,1739020233619,-500.0,0.00010958,2]
[352258413,1739020233629,-500.0,0.00010958,2]
[352258415,1739020233639,-500.0,0.00010958,2]
[352258417,1739020233649,-500.0,0.00010958,2]
[352258419,1739020233658,-500.0,0.00010958,2]
[352258421,1739020233668,-500.0,0.00010958,2]
[352258423,1739020233678,-500.0,0.00010958,2]
[352258425,1739020233687,-500.0,0.00010958,2]
[352258427,1739020233696,-500.0,0.00010958,2]
[352258429,1739020233706,-500.0,0.00010958,2]
[352258431,1739020233715,-1079.22,0.00010958,2]
[352258433,1739020233725,-500.0,0.00010958,2]
[352258435,1739020233735,-500.0,0.00010958,2]
[352258437,1739020233745,-642.11100735,0.00010958,2]
[352258439,1739020233754,-500.0,0.00010958,2]
[352258441,1739020233764,-500.0,0.00010958,2]
[352258443,1739020233773,-500.0,0.00010958,2]
[352258445,1739020233783,-500.0,0.00010958,2]
[352258447,1739020233793,-500.0,0.00010958,2]
[352258449,1739020233805,-500.0,0.00010958,2]
[352258451,1739020233815,-500.0,0.00010958,2]
[352258453,1739020233824,-500.0,0.00010958,2]
[352258455,1739020233833,-500.0,0.00010958,2]
[352258457,1739020233843,-500.0,0.00010958,2]
[352258459,1739020233853,-500.0,0.00010958,2]
[352258461,1739020233863,-500.0,0.00010958,2]
[352258463,1739020233872,-500.0,0.00010958,2]
[352258465,1739020233882,-1248.8,0.00010958,2]
[352258467,1739020233892,-729.59,0.00010958,2]
[352258469,1739020233902,-500.0,0.00010958,2]
[352258471,1739020233911,-500.0,0.00010958,2]
[352258473,1739020233920,-500.0,0.00010958,2]
[352258475,1739020233930,-500.0,0.00010958,2]
[352258477,1739020233939,-1512.36,0.00010958,2]
[352258479,1739020233949,-500.0,0.00010958,2]
[352258481,1739020233959,-500.0,0.00010958,2]
[352258483,1739020233968,-500.0,0.00010958,2]
[352258485,1739020233979,-500.58543279,0.00010958,2]
[352258487,1739020233988,-500.0,0.00010958,2]
[352258489,1739020233997,-500.0,0.00010958,2]
[352258491,1739020234006,-501.34143529,0.00010958,2]
[352258493,1739020234015,-500.0,0.00010958,2]
[352258495,1739020234024,-500.0,0.00010958,2]
[352258497,1739020234034,-500.0,0.00010958,2]
[352258499,1739020234044,-500.0,0.00010958,2]
[352258501,1739020234053,-500.0,0.00010958,2]
[352258503,1739020234063,-500.0,0.00010958,2]